bitfinex-derivatives/quotes_ETHF0:USTF0_20250115
["timestamp","ask_amount","ask_price","bid_price","bid_amount"]
[1736957835706,3.60221344,3352.8,3352.3,0.4847]
[1736957836003,3.13181344,3352.8,3352.7,0.59656]
[1736957836493,3.13181344,3352.8,3352.4,0.59661]
[1736957836700,3.13181344,3352.8,3352.3,0.4847]
[1736957836701,0.59659,3352.6,3352.3,0.4847]
[1736957836900,0.59659,3352.6,3352.4,0.5966]
[1736957837100,3.2078,3352.9,3352.2,3.2078]
[1736957837397,0.5966,3352.5,3352.4,0.59661]
[1736957837602,0.5966,3352.5,3351.9,1.49176]
[1736957837805,3.99632523,3352.5,3352.4,0.5966]
[1736957837999,0.59661,3352.4,3352.3,0.59662]
[1736957838200,0.59663,3352.3,3352.2,0.59664]
[1736957838405,3.39973523,3352.4,3351.5,0.9125]
[1736957838596,0.59675,3351.6,3351.5,0.9125]
[1736957838803,0.59675,3351.6,3351.5,0.4522]
[1736957839003,0.45971344,3352.0,3351.1,42.90378493]
[1736957839206,3.73688271,3351.6,3351.3,0.59679]
[1736957839397,3.14012271,3352.0,3351.2,0.4522]
[1736957839603,0.59678,3351.5,3351.2,1.04901]
[1736957839806,3.84338486,3351.5,3351.2,1.04901]
[1736957840007,3.24660486,3352.0,3351.2,0.4522]
[1736957840212,3.24660486,3351.4,3351.2,0.4522]
[1736957840411,3.24660486,3351.4,3351.2,1.04902]
[1736957840412,3.84340486,3351.4,3351.2,1.04902]
[1736957840614,0.59684,3351.2,3351.0,0.4603]
[1736957840807,3.2078,3351.7,3351.0,0.4603]
[1736957840808,3.12255128,3351.3,3351.0,0.4603]
[1736957841009,0.59679,3351.4,3351.0,0.4603]
[1736957841209,0.59679,3351.4,3351.3,0.59681]
[1736957841411,0.59679,3351.4,3351.0,0.4603]
[1736957841412,3.12255128,3351.3,3351.2,0.59682]
[1736957841703,3.97117104,3351.4,3351.3,0.59681]
[1736957841904,0.4726,3351.6,3351.3,0.59681]
[1736957842112,3.37438104,3351.4,3351.1,2.90378493]
[1736957842312,3.37438104,3351.4,3351.3,0.59681]
[1736957842509,0.59678,3351.5,3351.4,0.59679]
[1736957842711,0.59678,3351.5,3351.3,0.5968]
[1736957842908,3.25998941,3351.5,3350.8,3.2078]
[1736957843107,0.59682,3351.2,3350.6,0.4724]
[1736957843316,0.59688,3350.9,3350.7,0.5969]
[1736957843513,0.59686,3351.0,3350.6,1.06932]
[1736957843813,3.83587738,3350.8,3350.6,1.06933]
[1736957844110,3.6697,3351.1,3350.6,1.06933]
[1736957844111,3.23897738,3351.0,3350.6,0.4724]
[1736957844314,3.23897738,3350.7,3350.6,1.06933]
[1736957844517,3.23897738,3350.8,3350.7,0.59691]
[1736957844808,3.94939994,3350.9,3350.7,0.59691]
[1736957845016,3.35250994,3350.9,3350.6,0.4724]
[1736957845214,3.35250994,3351.0,3350.6,0.4724]
[1736957845215,3.6697,3351.1,3350.6,0.4724]
[1736957845415,0.59688,3350.9,3350.8,0.59688]
[1736957845616,3.33612316,3350.9,3350.8,0.5969]
[1736957845805,4.26655,3351.1,3350.6,0.4724]
[1736957846010,0.59687,3351.0,3350.8,0.59689]
[1736957846211,3.33612316,3350.9,3350.8,0.59689]
[1736957846413,3.33612316,3351.0,3350.9,0.59688]
[1736957846613,3.6697,3351.1,3350.6,0.4724]
[1736957846814,3.40162332,3351.0,3350.9,0.59687]
[1736957847017,3.40162332,3351.0,3350.6,0.4724]
[1736957847207,0.59691,3350.7,3350.6,0.4724]
[1736957847413,3.40162332,3351.0,3350.0,3.37788493]
[1736957847414,0.59698,3350.4,3350.1,0.59702]
[1736957847911,3.2078,3350.6,3350.1,0.59702]
[1736957848109,0.59699,3350.3,3350.0,3.80483]
[1736957848414,3.24212815,3350.2,3350.0,3.80483]
[1736957848721,0.59705,3350.0,3349.8,2.44716]
[1736957848918,0.59707,3349.9,3349.7,1.05348]
[1736957849218,0.59707,3349.8,3349.7,1.05348]
[1736957849417,0.59711,3349.6,3349.5,3.80492]
[1736957849617,6.46879361,3350.1,3349.5,3.2078]
[1736957849817,0.5971,3349.7,3349.5,3.80492]
[1736957850212,0.59711,3349.6,3349.5,3.2078]
[1736957850412,3.6657,3350.1,3349.3,0.4811]
[1736957850711,0.59711,3349.6,3349.5,0.59711]
[1736957850912,3.6657,3350.1,3349.5,2.90378493]
[1736957851118,0.5971,3349.7,3349.6,0.5971]
[1736957851325,3.40176056,3350.0,3349.4,3.2078]
[1736957851514,0.59712,3349.6,3349.4,3.80494]
[1736957851716,4.70055,3349.7,3349.0,4.2853]
[1736957851912,0.5972,3349.1,3349.0,3.6881]
[1736957852115,0.59723,3348.9,3348.8,1.367]
[1736957852416,3.2078,3349.1,3348.4,3.2078]
[1736957852611,0.59725,3348.8,3348.4,3.2078]
[1736957852913,0.59731,3348.5,3348.4,3.2078]
[1736957853319,3.82006241,3348.5,3348.4,3.2078]
[1736957853720,3.82006241,3348.5,3347.7,2.90378493]
[1736957853721,0.59739,3348.1,3347.7,2.90378493]
[1736957854021,1.4931,3348.9,3348.0,3.2078]
[1736957854222,0.59738,3348.1,3348.0,3.2078]
[1736957854427,4.88134224,3348.6,3347.9,3.8052]
[1736957854622,0.59736,3348.2,3348.1,0.59737]
[1736957855218,0.59736,3348.2,3347.8,4.5758]
[1736957855219,0.59735,3348.3,3348.2,0.59735]
[1736957855425,0.59735,3348.3,3347.8,4.5758]
[1736957855627,3.21124627,3348.4,3348.3,0.59734]
[1736957855826,3.2078,3348.9,3348.0,2.90378493]
[1736957856028,3.21124627,3348.8,3348.2,3.2078]
[1736957856233,0.59731,3348.5,3348.2,4.5758]
[1736957856424,0.59732,3348.4,3348.3,0.59733]
[1736957856620,0.59733,3348.4,3348.3,0.59733]
[1736957856820,1.49314,3348.8,3348.1,1.8151]
[1736957857025,0.4764,3349.2,3347.6,0.59746]
[1736957857026,0.59744,3347.8,3347.6,0.59746]
[1736957857330,0.59744,3347.8,3347.6,40.59746]
[1736957857525,0.59739,3348.0,3347.8,0.59743]
[1736957857731,0.59741,3347.9,3347.8,0.59743]
[1736957857927,0.59741,3347.9,3347.5,0.4471]
[1736957857928,3.30573862,3348.0,3347.5,0.4471]
[1736957858129,3.30573862,3347.9,3347.5,0.4471]
[1736957858430,3.30573862,3348.0,3347.4,43.2078]
[1736957858624,3.90313862,3348.0,3347.9,0.59741]
[1736957858829,3.2078,3348.1,3347.4,43.2078]
[1736957859028,3.38180391,3348.0,3347.0,3.2078]
[1736957859224,0.59756,3347.1,3347.0,3.2078]
[1736957859424,0.59759,3346.9,3346.7,0.59762]
[1736957859624,0.59761,3346.8,3346.7,40.0]
[1736957859827,3.73543137,3347.4,3346.5,3.6583]
[1736957860027,3.24693137,3346.8,3346.5,3.6583]
[1736957860231,3.2078,3347.1,3346.5,3.2078]
[1736957860426,0.59774,3346.1,3345.9,0.59776]
[1736957860624,0.59779,3345.8,3345.4,3.2078]
[1736957860824,3.31945257,3346.0,3345.4,3.2078]
[1736957861028,3.20824475,3346.6,3345.9,2.90378493]
[1736957861227,0.59756,3347.1,3346.8,0.59761]
[1736957861420,3.62782107,3347.4,3346.5,0.59765]
[1736957861421,3.8054,3346.9,3346.5,0.59765]
[1736957861727,3.8054,3346.9,3346.2,3.2078]
[1736957861728,3.28763508,3346.8,3346.7,0.59761]
[1736957861929,0.4909,3347.6,3346.7,0.59763]
[1736957861930,3.2078,3347.6,3346.7,0.59763]
[1736957862130,3.6985,3348.1,3347.0,3.2078]
[1736957862329,3.6985,3348.1,3347.1,1.369]
[1736957862532,3.28763508,3347.7,3347.6,0.59747]
[1736957862726,3.2078,3348.1,3348.0,0.59739]
[1736957862925,3.2078,3348.6,3348.5,0.59731]
[1736957863227,6.11158493,3348.6,3347.4,2.90378493]
[1736957863436,3.80525,3347.8,3347.5,0.59748]
[1736957863621,0.59745,3347.7,3347.4,0.5975]
[1736957863826,0.4907,3347.6,3346.8,3.2078]
[1736957864025,0.4907,3347.6,3346.6,0.4444]
[1736957864026,3.2078,3347.4,3346.6,0.4444]
[1736957864223,3.2078,3347.4,3346.4,4.5768]
[1736957864422,3.78478644,3347.3,3346.9,0.59758]
[1736957864727,3.2078,3347.5,3346.4,4.5768]
[1736957864934,3.21197042,3347.4,3346.9,0.59758]
[1736957865130,3.80951042,3347.2,3346.9,0.59758]
[1736957865325,3.2078,3347.5,3346.4,4.5768]
[1736957865326,3.21197042,3347.4,3346.4,4.5768]
[1736957865535,3.80538,3347.0,3346.7,0.59761]
[1736957865730,3.80538,3347.0,3346.4,4.5768]
[1736957865930,3.17312012,3346.9,3346.7,0.59762]
[1736957866134,3.77072012,3346.9,3346.3,15.02778493]
[1736957866440,3.17312012,3346.9,3346.7,0.59762]
[1736957866632,3.17312012,3346.9,3346.8,0.59761]
[1736957866831,3.17312012,3346.9,3346.7,3.2078]
[1736957867031,0.4721,3346.8,3346.7,3.2078]
[1736957867228,0.4721,3346.8,3346.7,3.80543]
[1736957867426,0.4721,3346.8,3346.7,3.2078]
[1736957867730,0.4721,3346.8,3346.7,0.59763]
[1736957867935,3.2078,3346.9,3346.3,2.90378493]
[1736957868229,3.6854,3347.3,3346.5,3.2078]
[1736957868434,3.2078,3347.3,3347.2,0.59754]
[1736957868931,0.59744,3347.8,3346.8,1.494]
[1736957868932,3.2078,3347.8,3347.1,2.90378493]
[1736957869130,3.2078,3347.8,3347.7,0.59745]
[1736957869325,3.2078,3347.8,3347.2,0.4704]
[1736957869526,6.3319283,3347.8,3347.2,0.4704]
[1736957869737,3.1241283,3347.8,3347.7,0.59745]
[1736957869933,0.4776,3348.0,3347.9,0.59741]
[1736957870239,3.2078,3348.2,3348.1,0.59738]
[1736957870630,7.00098904,3348.2,3348.0,0.59739]
[1736957870833,3.19582904,3348.2,3347.8,4.5768]
[1736957871029,3.2078,3348.8,3348.7,0.59727]
[1736957871532,3.80498,3349.2,3348.2,3.2078]
[1736957871739,3.2078,3349.2,3348.3,1.49336]
[1736957871939,3.35747239,3349.0,3348.3,1.49336]
[1736957872138,3.35747239,3349.0,3348.9,0.59723]
[1736957872340,3.35747239,3349.1,3348.4,3.2078]
[1736957872534,3.2078,3349.2,3348.4,3.2078]
[1736957872734,3.2078,3349.2,3348.7,0.59726]
[1736957872735,0.59723,3349.0,3348.7,0.59726]
[1736957872938,3.2078,3349.2,3348.4,3.2078]
[1736957873133,3.21213664,3348.9,3348.8,6.70883493]
[1736957873327,3.2078,3349.2,3348.8,6.11158493]
[1736957873533,0.458,3349.6,3348.8,6.11158493]
[1736957873747,3.6858,3349.9,3348.8,6.11158493]
[1736957873953,3.82077277,3349.5,3348.9,0.59723]
[1736957874151,3.80494,3349.5,3349.3,0.59716]
[1736957874446,3.22364277,3349.4,3349.3,0.59715]
[1736957874646,3.22364277,3349.4,3348.8,3.2078]
[1736957874853,3.22364277,3349.4,3349.3,0.59716]
[1736957875252,3.2078,3349.5,3349.4,0.59715]
[1736957876145,0.59698,3350.4,3349.4,3.2078]
[1736957876345,3.2078,3350.6,3350.4,0.59695]
[1736957876553,3.2078,3350.6,3350.5,0.59695]
[1736957876854,6.43621577,3350.6,3350.4,0.59695]
[1736957877251,6.43621577,3350.6,3350.5,0.59695]
[1736957877660,3.2078,3351.0,3350.9,0.59688]
[1736957877850,3.2078,3351.0,3350.8,0.59689]
[1736957878049,7.12583015,3351.0,3350.3,0.59698]
[1736957878251,6.52896015,3351.0,3350.8,0.59689]
[1736957878554,6.52896015,3351.0,3350.2,6.11158493]
[1736957878949,6.52896015,3351.0,3350.9,0.59688]
[1736957879150,3.2078,3352.2,3350.9,0.59688]
[1736957879355,3.2078,3352.2,3352.1,0.59666]
[1736957879549,6.52689773,3352.2,3352.1,0.59666]
[1736957880160,3.31909773,3352.2,3352.1,0.59666]
[1736957882958,3.2078,3352.8,3352.0,3.2078]
[1736957883159,0.59657,3352.7,3352.3,0.59661]
[1736957883361,3.12998797,3352.5,3352.4,0.5966]
[1736957883566,3.12998797,3352.7,3352.4,3.2078]
[1736957883763,0.4783,3352.9,3352.4,3.2078]
[1736957884056,3.12394912,3352.8,3352.4,3.2078]
[1736957884254,1.07482,3352.9,3352.6,0.59657]
[1736957884453,3.12394912,3352.8,3352.4,3.2078]
[1736957884652,3.72049912,3352.8,3352.5,0.59658]
[1736957885560,0.59664,3352.3,3352.0,3.80448]
[1736957885759,3.2078,3352.5,3352.0,3.2078]
[1736957885954,1.07483,3352.9,3352.5,0.59658]
[1736957886155,1.07483,3352.9,3352.0,3.2078]
[1736957886454,3.22227628,3352.8,3352.6,0.59657]
[1736957886650,3.22227628,3352.8,3352.7,0.59656]
[1736957887560,3.2078,3353.1,3353.0,0.5965]
[1736957887763,0.59643,3353.5,3352.7,0.59656]
[1736957888053,4.00510946,3353.3,3353.0,0.5965]
[1736957888259,4.00510946,3353.3,3352.6,7.80978493]
[1736957888260,0.59647,3353.2,3352.6,8.40634493]
[1736957888452,0.59652,3353.0,3352.7,0.59655]
[1736957888653,0.5965,3353.1,3352.8,0.59653]
[1736957888852,6.61644946,3353.3,3352.6,7.80978493]
[1736957889061,0.59653,3352.9,3352.6,2.90378493]
[1736957889263,2.55418569,3352.9,3352.7,0.59654]
[1736957889463,2.55418569,3352.9,3352.6,2.90378493]
[1736957889655,0.59658,3352.6,3352.4,3.8044]
[1736957889956,0.59659,3352.5,3352.4,3.2078]
[1736957890162,1.72773693,3353.2,3352.4,3.80441]
[1736957890356,0.59657,3352.7,3352.4,3.80441]
[1736957890656,3.2078,3352.8,3352.4,3.2078]
[1736957890864,3.2078,3352.8,3352.7,0.59656]
[1736957891064,3.2078,3352.8,3352.6,2.90378493]
[1736957891261,6.51160968,3352.8,3352.0,3.2078]
[1736957891558,3.2078,3352.4,3351.4,2.90378493]
[1736957891762,3.2078,3352.4,3351.8,0.59671]
[1736957891953,3.38175526,3352.3,3351.6,0.59675]
[1736957892154,3.2078,3352.0,3351.4,2.90378493]
[1736957892656,0.59681,3351.4,3351.1,1.07303]
[1736957892963,3.2078,3351.6,3351.1,0.59683]
[1736957893157,0.5968,3351.4,3351.2,0.59682]
[1736957893558,0.59682,3351.3,3351.1,0.59684]
[1736957893759,3.2078,3351.6,3351.0,2.90378493]
[1736957893962,3.2078,3351.6,3351.1,0.59684]
[1736957893963,0.59681,3351.4,3351.1,0.59684]
[1736957894258,0.59682,3351.3,3351.1,0.59684]
[1736957894455,0.59682,3351.3,3351.0,2.90378493]
[1736957894650,3.40517647,3351.5,3351.2,0.59682]
[1736957894855,0.59683,3351.2,3351.1,0.59684]
[1736957895354,3.2078,3351.6,3351.0,2.90378493]
[1736957895557,0.59682,3351.3,3351.1,0.59683]
[1736957895762,0.59682,3351.3,3351.0,2.90378493]
[1736957895961,0.59682,3351.2,3351.1,0.59683]
[1736957896463,0.59684,3351.1,3351.0,2.90378493]
[1736957897161,0.4615,3351.5,3351.0,2.90378493]
[1736957897459,3.37516508,3351.4,3351.0,2.90378493]
[1736957897866,0.4615,3351.5,3351.0,2.90378493]
[1736957898064,0.4615,3351.5,3351.1,0.59683]
[1736957898265,0.4615,3351.5,3351.0,2.90378493]
[1736957898459,0.59682,3351.3,3351.1,0.59683]
[1736957898665,0.59682,3351.2,3351.1,40.59683]
[1736957898962,0.4615,3351.5,3350.8,3.2078]
[1736957899160,0.59693,3350.6,3350.5,2.90378493]
[1736957899361,3.2078,3351.0,3350.1,2.90378493]
[1736957899666,0.59696,3350.5,3350.4,0.59696]
[1736957899868,0.59697,3350.4,3350.3,0.59697]
[1736957900062,0.597,3350.2,3350.1,2.90378493]
[1736957900269,0.59702,3350.2,3350.1,0.59701]
[1736957900569,0.59707,3349.8,3349.7,3.50086493]
[1736957900761,3.27587738,3350.2,3349.7,2.90378493]
[1736957900762,6.48367738,3350.2,3349.7,2.90378493]
[1736957900959,0.59705,3350.0,3349.9,0.59705]
[1736957901266,0.59701,3350.2,3350.1,0.59702]
[1736957901465,3.2078,3350.6,3349.7,2.90378493]
[1736957901673,0.59701,3350.2,3350.1,0.59701]
[1736957902863,0.597,3350.3,3350.1,0.59701]
[1736957903270,3.23259336,3350.5,3349.7,4.39652493]
[1736957903465,0.59697,3350.4,3350.3,0.59698]
[1736957903670,0.59697,3350.4,3350.2,0.597]
[1736957903981,3.30312547,3350.4,3349.7,4.26978493]
[1736957904271,0.59699,3350.3,3349.7,2.90378493]
[1736957904468,0.59699,3350.3,3350.2,0.597]
[1736957905067,0.59697,3350.4,3350.2,0.597]
[1736957905264,0.59699,3350.3,3350.2,0.597]
[1736957905460,3.44230873,3350.3,3349.8,40.0]
[1736957905664,0.4696,3350.7,3349.8,40.0]
[1736957905665,0.4696,3350.7,3350.1,2.90378493]
[1736957905970,0.4696,3350.7,3349.8,40.0]
[1736957905971,3.2078,3351.4,3351.0,0.59686]
[1736957906162,3.2078,3351.4,3350.5,2.90378493]
[1736957906163,0.4481,3351.8,3350.5,3.84408493]
[1736957906364,3.85423886,3351.8,3351.2,0.59681]
[1736957906565,4.00293886,3351.4,3351.3,0.59681]
[1736957906764,3.40613886,3351.5,3351.1,0.59683]
[1736957906968,1.93994,3351.8,3350.9,2.90378493]
[1736957906969,3.35995116,3351.7,3350.9,2.90378493]
[1736957907174,0.59684,3351.1,3351.0,0.59685]
[1736957907666,0.59683,3351.2,3351.1,0.59684]
[1736957907864,3.2078,3351.5,3350.7,3.2078]
[1736957908060,0.59685,3351.1,3351.0,0.59685]
[1736957908265,0.59687,3351.0,3350.9,0.59687]
[1736957908467,3.2078,3351.5,3350.7,3.2078]
[1736957908468,3.2078,3351.5,3351.0,0.59686]
[1736957908664,3.31537328,3351.1,3351.0,0.59686]
[1736957908861,0.59681,3351.3,3350.9,2.90378493]
[1736957909061,0.5968,3351.4,3351.3,0.5968]
[1736957909462,0.59679,3351.4,3351.0,0.59686]
[1736957909663,0.59681,3351.4,3350.9,2.90378493]
[1736957909865,0.4481,3351.8,3350.9,2.90378493]
[1736957909866,0.59683,3351.2,3350.9,2.90378493]
[1736957910069,1.49189,3351.6,3350.9,2.90378493]
[1736957910262,3.42031757,3351.7,3350.9,2.90378493]
[1736957910464,4.01710757,3351.5,3351.4,0.59678]
[1736957910770,3.44747743,3351.7,3350.9,2.90378493]
[1736957911069,0.59684,3351.2,3351.1,0.59684]
[1736957911367,0.59684,3351.2,3350.8,0.59688]
[1736957911368,3.44747743,3351.2,3350.8,0.59688]
[1736957911666,4.69978,3351.5,3350.9,0.59686]
[1736957911865,3.28137774,3351.4,3350.9,2.90378493]
[1736957912065,0.5968,3351.4,3351.2,0.59681]
[1736957912273,3.28137774,3351.4,3350.9,2.90378493]
[1736957912465,3.28137774,3351.4,3351.3,0.59681]
[1736957912970,3.87816774,3351.4,3351.3,0.59681]
[1736957913774,3.2078,3351.5,3350.9,2.90378493]
[1736957913964,3.2078,3351.5,3351.4,0.59679]
[1736957914870,0.59668,3352.0,3351.9,0.59669]
[1736957915072,0.59654,3352.8,3352.7,0.59655]
[1736957915273,3.2078,3353.1,3352.3,2.90378493]
[1736957915572,3.31996599,3352.6,3352.5,0.59659]
[1736957915769,3.8043,3353.1,3352.4,40.0]
[1736957915770,3.2078,3353.1,3352.4,40.4506]
[1736957915969,0.59644,3353.4,3353.2,0.59645]
[1736957916170,4.1847,3353.7,3352.8,0.59654]
[1736957916171,3.23261315,3352.9,3352.8,0.59654]
[1736957916367,3.23261315,3353.3,3353.2,0.59647]
[1736957916566,0.1076127,3353.6,3353.2,6.70805493]
[1736957916770,5.30652493,3354.7,3354.0,0.59633]
[1736957916771,0.4482,3354.7,3354.0,0.59633]
[1736957916968,0.59626,3354.4,3354.2,0.59628]
[1736957917169,3.2078,3354.6,3354.1,0.59629]
[1736957917370,3.87547359,3354.3,3354.1,0.59629]
[1736957917577,3.27919359,3354.3,3354.2,0.59629]
[1736957917975,0.4842,3355.0,3354.0,3.2078]
[1736957918170,0.59622,3354.6,3354.2,0.59627]
[1736957918379,3.27063639,3354.5,3354.4,0.59626]
[1736957918673,0.59621,3354.7,3354.4,0.59626]
[1736957918974,0.59621,3354.7,3354.3,2.90378493]
[1736957918975,0.59625,3354.5,3354.3,2.90378493]
[1736957919179,3.45447765,3354.7,3354.0,3.2078]
[1736957919368,6.66227765,3354.4,3353.5,2.90378493]
[1736957919569,3.2078,3354.0,3353.2,3.2078]
[1736957919769,0.59642,3353.5,3353.2,3.80426]
[1736957919969,3.2078,3354.0,3353.2,3.80426]
[1736957919970,3.39745146,3353.9,3353.2,3.2078]
[1736957920266,0.4539,3353.9,3353.2,3.2078]
[1736957920469,0.59638,3353.7,3353.4,0.59643]
[1736957920670,3.33304977,3353.8,3353.2,3.2078]
[1736957920870,3.45173308,3353.6,3353.2,3.2078]
[1736957921066,3.45173308,3353.8,3353.2,3.2078]
[1736957921269,4.04810308,3353.8,3353.2,3.2078]
[1736957921472,0.4539,3353.9,3353.2,3.2078]
[1736957921670,0.5964,3353.6,3353.2,3.80425]
[1736957921869,3.23827322,3353.8,3353.4,0.59642]
[1736957922075,0.4539,3353.9,3353.2,3.2078]
[1736957922278,0.4539,3353.9,3353.7,0.59638]
[1736957922279,1.05025,3353.9,3353.7,0.59638]
[1736957922483,0.59636,3353.8,3353.6,0.59639]
[1736957922778,0.59636,3353.8,3353.5,2.90378493]
[1736957922779,3.2078,3354.5,3353.5,2.90378493]
[1736957922976,0.4736,3354.4,3353.5,2.90378493]
[1736957923175,3.92293759,3354.2,3353.9,0.59634]
[1736957923370,3.80023759,3354.4,3354.0,0.59631]
[1736957923371,0.59628,3354.3,3354.0,0.59631]
[1736957923576,0.4736,3354.4,3353.6,3.2078]
[1736957923768,3.32663759,3354.1,3354.0,3.80413]
[1736957923972,3.32663759,3354.2,3354.1,0.59631]
[1736957924182,0.59619,3354.8,3354.2,0.59629]
[1736957924382,1.49017,3355.5,3354.1,4.906]
[1736957924383,0.59618,3354.9,3354.7,0.59619]
[1736957924682,0.59618,3354.9,3354.5,2.90378493]
[1736957924683,3.40447461,3354.9,3354.5,2.90378493]
[1736957925079,0.59618,3354.8,3354.5,3.50001493]
[1736957925272,3.2078,3354.7,3354.1,3.37808493]
[1736957925477,3.2078,3354.7,3354.1,2.90378493]
[1736957925478,0.59629,3354.2,3354.1,2.90378493]
[1736957925677,1.49048,3354.8,3353.7,3.50015493]
[1736957925678,0.59634,3354.0,3353.7,3.50015493]
[1736957925877,0.59632,3354.1,3353.9,0.59634]
[1736957926083,3.2078,3354.3,3353.7,2.90378493]
[1736957926285,0.59636,3353.8,3353.7,2.90378493]
[1736957926580,3.2078,3354.3,3353.4,0.59642]
[1736957926581,0.59638,3353.7,3353.4,0.59642]
[1736957926776,0.59639,3353.7,3353.4,0.59642]
[1736957926977,0.59643,3353.5,3353.3,4.72078493]
[1736957927185,1.49075,3354.2,3353.3,4.72078493]
[1736957927378,3.2078,3354.3,3353.7,2.90378493]
[1736957927579,4.05448301,3354.1,3353.9,0.59634]
[1736957927878,3.45816301,3354.2,3354.1,0.59631]
[1736957928080,3.2078,3355.2,3354.1,4.26778493]
[1736957928281,3.2078,3355.2,3354.6,2.90378493]
[1736957928478,3.88283258,3354.9,3354.7,0.59619]
[1736957928675,0.4829,3355.4,3354.6,2.90378493]
[1736957928879,0.59604,3355.7,3355.4,0.59606]
[1736957929077,0.9331,3356.0,3355.4,2.90378493]
[1736957929283,3.71681697,3355.6,3355.4,3.49985493]
[1736957929484,0.59605,3355.6,3355.4,3.49985493]
[1736957929680,0.59605,3355.6,3355.4,2.90378493]
[1736957929875,0.59606,3355.5,3355.4,2.90378493]
[1736957930183,0.9331,3356.0,3355.1,1.364]
[1736957930184,3.35517055,3355.9,3355.1,1.364]
[1736957930387,0.59608,3355.4,3355.2,0.5961]
[1736957930981,0.59611,3355.3,3355.1,0.59612]
[1736957931280,0.59611,3355.3,3355.0,47.47558493]
[1736957931281,0.59613,3355.1,3355.0,2.90378493]
[1736957932484,3.2078,3355.8,3355.0,6.11158493]
[1736957932687,0.59607,3355.5,3355.3,0.59608]
[1736957932880,0.5961,3355.3,3355.2,0.59611]
[1736957933086,0.59609,3355.4,3355.3,0.59609]
[1736957933282,0.9331,3356.0,3355.0,6.11158493]
[1736957933588,3.24605593,3355.4,3355.0,6.11158493]
[1736957933787,3.24605593,3355.8,3355.0,6.11158493]
[1736957934086,0.59604,3355.7,3355.5,0.59605]
[1736957934286,3.95521353,3355.7,3355.5,0.59605]
[1736957934589,0.59604,3355.7,3355.4,6.11158493]
[1736957934786,0.59602,3355.8,3355.6,0.59604]
[1736957934978,0.59599,3355.9,3355.4,6.11158493]
[1736957935186,3.93891456,3355.7,3355.4,6.70765493]
[1736957935383,0.59605,3355.6,3355.4,6.11158493]
[1736957935587,0.59603,3355.7,3355.5,0.59605]
[1736957935787,0.59602,3355.8,3355.6,0.59603]
[1736957936076,3.81879273,3355.7,3355.5,0.59606]
[1736957936483,0.4783,3356.0,3355.4,6.11158493]
[1736957936685,3.22275273,3355.6,3355.4,6.11158493]
[1736957936888,3.22275273,3355.6,3355.5,0.59606]
[1736957937194,3.12810016,3355.6,3355.5,0.59606]
[1736957937694,3.72415016,3355.6,3355.4,3.80387]
[1736957937893,3.12810016,3355.6,3355.4,3.2078]
[1736957938088,0.59604,3355.7,3355.5,0.59606]
[1736957938887,0.4783,3356.0,3355.9,0.59599]
[1736957939093,0.4929,3356.6,3355.9,0.59599]
[1736957939094,0.59588,3356.6,3356.4,0.5959]
[1736957939292,0.59587,3356.6,3356.4,3.49968493]
[1736957939588,0.4916,3356.9,3356.4,6.11158493]
[1736957939896,4.02473744,3356.6,3356.4,6.70747493]
[1736957940094,0.59588,3356.5,3356.4,2.90378493]
[1736957940289,0.4916,3356.9,3356.0,0.4684]
[1736957940290,0.59595,3356.1,3356.0,4.73418493]
[1736957940597,3.42886744,3356.5,3356.4,0.5959]
[1736957940791,0.59585,3356.7,3356.5,0.59588]
[1736957941092,3.3941031,3356.6,3356.2,3.2078]
[1736957941293,0.59595,3356.2,3356.0,5.33014493]
[1736957941491,3.3941031,3356.7,3356.0,4.73418493]
[1736957941697,0.59595,3356.2,3356.0,4.73418493]
[1736957941999,0.58147384,3356.3,3356.1,0.59594]
[1736957942196,3.24536209,3356.6,3356.0,3.37218493]
[1736957942498,3.24536209,3356.2,3356.1,0.59595]
[1736957942688,3.2078,3356.7,3356.0,3.37218493]
[1736957942888,0.59591,3356.4,3356.3,0.59591]
[1736957943090,3.35143696,3356.6,3356.0,3.37218493]
[1736957943290,0.59589,3356.5,3356.3,0.5959]
[1736957943587,3.35143696,3356.6,3356.3,0.5959]
[1736957943789,3.35143696,3356.6,3356.0,3.37218493]
[1736957944094,3.2078,3356.7,3356.4,0.59589]
[1736957944296,0.59588,3356.5,3356.3,0.59591]
[1736957944595,3.42232044,3356.6,3356.3,0.59591]
[1736957944792,0.59592,3356.3,3356.2,0.59592]
[1736957945088,3.27207769,3356.6,3356.0,3.37218493]
[1736957945291,3.27207769,3356.6,3356.5,0.59588]
[1736957945489,3.27207769,3356.8,3356.4,2.90378493]
[1736957945689,3.27207769,3356.8,3356.7,0.59585]
[1736957945902,0.4779,3357.5,3356.8,0.59583]
[1736957946198,0.59575,3357.3,3357.2,2.90378493]
[1736957946490,0.59575,3357.3,3356.8,3.37508493]
[1736957946491,0.59578,3357.1,3356.8,3.37508493]
[1736957946697,0.59578,3357.1,3356.9,0.5958]
[1736957946894,3.30005063,3357.0,3355.8,3.2078]
[1736957947093,3.2078,3356.5,3355.8,7.47358493]
[1736957947293,0.59593,3356.3,3356.2,0.59593]
[1736957947485,3.2078,3356.5,3355.8,4.26578493]
[1736957947486,0.59596,3356.1,3355.8,4.26578493]
[1736957947690,3.77425063,3356.4,3355.8,2.90378493]
[1736957947894,0.59599,3355.9,3355.7,6.268]
[1736957948094,0.59601,3355.8,3355.7,4.906]
[1736957948299,3.27746821,3355.8,3355.0,7.94128493]
[1736957948493,3.2078,3355.7,3355.0,7.94128493]
[1736957948692,3.2078,3355.3,3355.0,2.90378493]
[1736957948891,0.59613,3355.2,3355.0,3.49992493]
[1736957949190,0.59613,3355.1,3355.0,3.49992493]
[1736957949590,0.4742,3355.6,3355.0,2.90378493]
[1736957949790,0.59617,3354.9,3354.8,1.95817]
[1736957949996,0.5962,3354.7,3354.6,2.90378493]
[1736957950201,4.69805,3355.3,3354.3,0.4618]
[1736957950202,6.45951885,3354.9,3354.3,0.4618]